[Event "Early-Titled-Tuesday-Blitz-February-20-2024"]
[Site "Chess.com"]
[Date "2024.02.20"]
[Round "5"]
[White "Leonid_Starozhilov"]
[Black "GameOverBro"]
[Result "0-1"]
[WhiteElo "2672"]
[BlackElo "2531"]
[TimeControl "180+1"]
[EndTime "8:57:33 PST"]
[Termination "GameOverBro won on time"]

1. e4 {[%clk 0:03:00.7]} 1... c5 {[%clk 0:02:50.5]} 2. Nf3 {[%clk 0:02:59.6]}
2... Nc6 {[%clk 0:02:44]} 3. Bb5 {[%clk 0:02:59.9]} 3... g6 {[%clk 0:02:42.1]}
4. Nc3 {[%clk 0:02:57.9]} 4... Bg7 {[%clk 0:02:41.9]} 5. O-O {[%clk 0:02:58.1]}
5... Nf6 {[%clk 0:02:40.3]} 6. Bxc6 {[%clk 0:02:52.5]} 6... dxc6 {[%clk
0:02:39.7]} 7. d3 {[%clk 0:02:52.5]} 7... Nd7 {[%clk 0:02:37.5]} 8. h3 {[%clk
0:02:52.2]} 8... e5 {[%clk 0:02:37.2]} 9. Be3 {[%clk 0:02:52.4]} 9... Qe7 {[%clk
0:02:36.3]} 10. a4 {[%clk 0:02:52.2]} 10... b6 {[%clk 0:02:35.9]} 11. Nd2 {[%clk
0:02:52.5]} 11... Nf8 {[%clk 0:02:31.9]} 12. Nc4 {[%clk 0:02:48.9]} 12... Ne6
{[%clk 0:02:29]} 13. a5 {[%clk 0:02:49.1]} 13... b5 {[%clk 0:02:26.1]} 14. Nd2
{[%clk 0:02:48.2]} 14... Nd4 {[%clk 0:02:21.6]} 15. f4 {[%clk 0:02:39.8]} 15...
exf4 {[%clk 0:02:17.9]} 16. Bxf4 {[%clk 0:02:39.3]} 16... O-O {[%clk 0:02:14.5]}
17. Nf3 {[%clk 0:02:33.3]} 17... h6 {[%clk 0:02:09.1]} 18. Qd2 {[%clk
0:02:24.9]} 18... Kh7 {[%clk 0:02:06.1]} 19. Rae1 {[%clk 0:02:22]} 19... Be6
{[%clk 0:02:02.7]} 20. Nxd4 {[%clk 0:02:16.1]} 20... cxd4 {[%clk 0:01:57.8]} 21.
Ne2 {[%clk 0:02:11.3]} 21... c5 {[%clk 0:01:56.3]} 22. Bg3 {[%clk 0:01:54.5]}
22... a6 {[%clk 0:01:48.2]} 23. Nf4 {[%clk 0:01:51.5]} 23... Rac8 {[%clk
0:01:45]} 24. Nd5 {[%clk 0:01:43.6]} 24... Qd8 {[%clk 0:01:18.2]} 25. Nb6 {[%clk
0:01:34.3]} 25... Rc6 {[%clk 0:01:17.5]} 26. Qf2 {[%clk 0:01:22.4]} 26... c4
{[%clk 0:01:06.8]} 27. Kh1 {[%clk 0:01:12.9]} 27... Rxb6 {[%clk 0:01:00.6]} 28.
axb6 {[%clk 0:01:12.7]} 28... Qxb6 {[%clk 0:01:01.5]} 29. Bf4 {[%clk 0:01:06.9]}
29... a5 {[%clk 0:01:00.9]} 30. Qg3 {[%clk 0:01:06.6]} 30... a4 {[%clk
0:00:56.6]} 31. Be5 {[%clk 0:01:05.9]} 31... Ra8 {[%clk 0:00:39.8]} 32. Bxg7
{[%clk 0:01:02.8]} 32... Kxg7 {[%clk 0:00:40.7]} 33. Qe5+ {[%clk 0:01:03]} 33...
Kg8 {[%clk 0:00:36.7]} 34. Rf6 {[%clk 0:00:54.4]} 34... Re8 {[%clk 0:00:30.7]}
35. Ref1 {[%clk 0:00:48.8]} 35... Qb8 {[%clk 0:00:24.5]} 36. Qxd4 {[%clk
0:00:48.1]} 36... cxd3 {[%clk 0:00:22.3]} 37. cxd3 {[%clk 0:00:41]} 37... b4
{[%clk 0:00:22.2]} 38. Qe3 {[%clk 0:00:41.3]} 38... Kg7 {[%clk 0:00:20.9]} 39.
d4 {[%clk 0:00:39.6]} 39... Bc4 {[%clk 0:00:16.9]} 40. R1f2 {[%clk 0:00:15.2]}
40... Bd5 {[%clk 0:00:17.4]} 41. e5 {[%clk 0:00:14.3]} 41... Qc8 {[%clk
0:00:17.9]} 42. Qf4 {[%clk 0:00:13]} 42... Qxh3+ {[%clk 0:00:17.1]} 43. Kg1
{[%clk 0:00:12.5]} 43... Qb3 {[%clk 0:00:17.5]} 44. Rd6 {[%clk 0:00:09.1]} 44...
a3 {[%clk 0:00:16.5]} 45. Qf6+ {[%clk 0:00:08.9]} 45... Kg8 {[%clk 0:00:17.2]}
46. Rd8 {[%clk 0:00:07.2]} 46... Rxd8 {[%clk 0:00:16.1]} 47. Qxd8+ {[%clk
0:00:08.1]} 47... Kh7 {[%clk 0:00:15.9]} 48. bxa3 {[%clk 0:00:08.6]} 48... bxa3
{[%clk 0:00:16]} 49. Qa5 {[%clk 0:00:07.2]} 49... a2 {[%clk 0:00:15.9]} 50. Rf1
{[%clk 0:00:03.5]} 50... Qe3+ {[%clk 0:00:14.9]} 51. Kh2 {[%clk 0:00:03.5]}
51... Qxd4 {[%clk 0:00:15.4]} 52. Qe1 {[%clk 0:00:01.6]} 52... Be6 {[%clk
0:00:12.4]} 53. Kh1 {[%clk 0:00:01.8]} 53... Qg4 {[%clk 0:00:11.7]} 54. Kg1
{[%clk 0:00:02]} 54... Bd5 {[%clk 0:00:12.1]} 55. Qf2 {[%clk 0:00:02.4]} 55...
Qe4 {[%clk 0:00:10.9]} 56. Re1 {[%clk 0:00:02.1]} 56... Qd3 {[%clk 0:00:07.6]}
57. Rf1 {[%clk 0:00:02.1]} 57... Qe4 {[%clk 0:00:07.2]} 58. Re1 {[%clk
0:00:02.2]} 58... Qb1 {[%clk 0:00:07.8]} 59. Qf1 {[%clk 0:00:02.3]} 59... Qb2
{[%clk 0:00:06.8]} 60. Ra1 {[%clk 0:00:01.7]} 60... Qd4+ {[%clk 0:00:06.8]} 61.
Kh1 {[%clk 0:00:01.9]} 61... Qxe5 {[%clk 0:00:07.5]} 62. Re1 {[%clk 0:00:02.2]}
62... Qh5+ {[%clk 0:00:07.5]} 63. Kg1 {[%clk 0:00:02.4]} 63... Qg5 {[%clk
0:00:07.8]} 64. Ra1 {[%clk 0:00:01.9]} 64... h5 {[%clk 0:00:08.2]} 65. Kh2
{[%clk 0:00:02.2]} 65... h4 {[%clk 0:00:08.4]} 66. Rd1 {[%clk 0:00:02.2]} 66...
Qg3+ {[%clk 0:00:08.6]} 67. Kh1 {[%clk 0:00:01.7]} 67... Be6 {[%clk 0:00:07.4]}
68. Rd3 {[%clk 0:00:01.3]} 68... Qe5 {[%clk 0:00:05.9]} 69. Ra3 {[%clk
0:00:01.1]} 69... Bd5 {[%clk 0:00:04.1]} 0-1

[Event "Early-Titled-Tuesday-Blitz-February-20-2024"]
[Site "Chess.com"]
[Date "2024.02.20"]
[Round "5"]
[White "GoltsevDmitry2000"]
[Black "Durarbayli"]
[Result "0-1"]
[WhiteElo "2787"]
[BlackElo "2978"]
[TimeControl "180+1"]
[EndTime "8:57:35 PST"]
[Termination "Durarbayli won on time"]

1. e4 {[%clk 0:02:59.4]} 1... e6 {[%clk 0:02:59.6]} 2. d4 {[%clk 0:02:59.5]}
2... d5 {[%clk 0:03:00.2]} 3. exd5 {[%clk 0:03:00.4]} 3... exd5 {[%clk
0:03:00.1]} 4. Nf3 {[%clk 0:03:00.5]} 4... Nc6 {[%clk 0:02:59.8]} 5. c4 {[%clk
0:03:00.3]} 5... Bb4+ {[%clk 0:02:55.6]} 6. Nc3 {[%clk 0:02:54.9]} 6... Nge7
{[%clk 0:02:52.8]} 7. Bd3 {[%clk 0:02:54.1]} 7... Bg4 {[%clk 0:02:48.2]} 8. a3
{[%clk 0:02:52.7]} 8... Bxf3 {[%clk 0:02:34.9]} 9. gxf3 {[%clk 0:02:48]} 9...
Bxc3+ {[%clk 0:02:21.5]} 10. bxc3 {[%clk 0:02:48.9]} 10... dxc4 {[%clk
0:02:12.6]} 11. Bxc4 {[%clk 0:02:47.3]} 11... O-O {[%clk 0:02:13.1]} 12. O-O
{[%clk 0:02:27.9]} 12... Ng6 {[%clk 0:02:04.4]} 13. Qd3 {[%clk 0:02:20.8]} 13...
Qf6 {[%clk 0:01:42]} 14. Bd5 {[%clk 0:02:13]} 14... Rad8 {[%clk 0:01:37.8]} 15.
Be4 {[%clk 0:02:12.1]} 15... Nh4 {[%clk 0:01:15.7]} 16. Qe3 {[%clk 0:02:05.9]}
16... Ne7 {[%clk 0:00:47.2]} 17. Qg5 {[%clk 0:01:58.8]} 17... Nxf3+ {[%clk
0:00:36.4]} 18. Bxf3 {[%clk 0:01:57]} 18... Qxf3 {[%clk 0:00:37.3]} 19. Qxe7
{[%clk 0:01:16.7]} 19... Qg4+ {[%clk 0:00:36.1]} 20. Kh1 {[%clk 0:01:16.9]}
20... Qf3+ {[%clk 0:00:37]} 21. Kg1 {[%clk 0:01:17.1]} 21... Rd6 {[%clk
0:00:24.3]} 22. Bg5 {[%clk 0:00:46]} 22... Qg4+ {[%clk 0:00:19.8]} 23. Kh1
{[%clk 0:00:46.1]} 23... Qf3+ {[%clk 0:00:20.7]} 24. Kg1 {[%clk 0:00:46.6]}
24... Rg6 {[%clk 0:00:21]} 25. Rfe1 {[%clk 0:00:38.3]} 25... f6 {[%clk
0:00:11.2]} 26. Qe4 {[%clk 0:00:06.9]} 26... Rxg5+ {[%clk 0:00:10.1]} 27. Kf1
{[%clk 0:00:07.6]} 27... Qh3+ {[%clk 0:00:10.1]} 28. Ke2 {[%clk 0:00:08.2]}
28... Qxc3 {[%clk 0:00:10.8]} 29. Rac1 {[%clk 0:00:07.9]} 29... Qxa3 {[%clk
0:00:10.9]} 30. Rxc7 {[%clk 0:00:07.5]} 30... Qa6+ {[%clk 0:00:08.5]} 31. Kd2
{[%clk 0:00:06.5]} 31... Qa5+ {[%clk 0:00:08.4]} 32. Rc3 {[%clk 0:00:06.5]}
32... h6 {[%clk 0:00:06.4]} 33. Qe6+ {[%clk 0:00:06.8]} 33... Kh8 {[%clk
0:00:06.4]} 34. Re3 {[%clk 0:00:07.3]} 34... Rg2 {[%clk 0:00:06.1]} 35. Qe7
{[%clk 0:00:06.5]} 35... Rg8 {[%clk 0:00:05.6]} 36. Rg3 {[%clk 0:00:06.7]} 36...
Qa2+ {[%clk 0:00:05.4]} 37. Kd3 {[%clk 0:00:06.5]} 37... Qxf2 {[%clk 0:00:05.6]}
38. Rxg2 {[%clk 0:00:05.7]} 38... Qxg2 {[%clk 0:00:06.5]} 39. Rc7 {[%clk
0:00:05.3]} 39... Qh3+ {[%clk 0:00:05.7]} 40. Kc4 {[%clk 0:00:05.3]} 40... b5+
{[%clk 0:00:02.4]} 41. Kxb5 {[%clk 0:00:05.5]} 41... Qb3+ {[%clk 0:00:02.7]} 42.
Kc5 {[%clk 0:00:05.9]} 42... a5 {[%clk 0:00:02.9]} 43. d5 {[%clk 0:00:04.9]}
43... a4 {[%clk 0:00:03.3]} 44. d6 {[%clk 0:00:05.3]} 44... a3 {[%clk
0:00:03.8]} 45. d7 {[%clk 0:00:05.8]} 45... Qc3+ {[%clk 0:00:03.3]} 46. Kd6
{[%clk 0:00:05.9]} 46... Qd3+ {[%clk 0:00:03.5]} 47. Kc6 {[%clk 0:00:06.4]}
47... a2 {[%clk 0:00:03.9]} 48. Rc8 {[%clk 0:00:06.6]} 48... a1=Q {[%clk
0:00:03]} 49. Rxg8+ {[%clk 0:00:06.4]} 49... Kxg8 {[%clk 0:00:03.9]} 50. d8=Q+
{[%clk 0:00:06.5]} 50... Qxd8 {[%clk 0:00:04.1]} 51. Qxd8+ {[%clk 0:00:07.4]}
51... Kf7 {[%clk 0:00:04.7]} 52. Qd3 {[%clk 0:00:08.2]} 52... Qe5 {[%clk
0:00:04.1]} 53. Qd7+ {[%clk 0:00:06.9]} 53... Qe7 {[%clk 0:00:04.4]} 54. Qd1
{[%clk 0:00:07.8]} 54... Qe6+ {[%clk 0:00:05.3]} 55. Kc7 {[%clk 0:00:08]} 55...
Qe5+ {[%clk 0:00:06.2]} 56. Kc6 {[%clk 0:00:08.5]} 56... f5 {[%clk 0:00:05.4]}
57. h4 {[%clk 0:00:08.1]} 57... Qe4+ {[%clk 0:00:05.1]} 58. Kc7 {[%clk 0:00:08]}
58... Qe7+ {[%clk 0:00:05.6]} 59. Kb6 {[%clk 0:00:08]} 59... Qxh4 {[%clk
0:00:05.9]} 60. Qd7+ {[%clk 0:00:08]} 60... Kg6 {[%clk 0:00:06.1]} 61. Qc7
{[%clk 0:00:07]} 61... Qf6+ {[%clk 0:00:07]} 62. Kb7 {[%clk 0:00:07]} 62... Kh7
{[%clk 0:00:06.3]} 63. Kb8 {[%clk 0:00:04.9]} 63... f4 {[%clk 0:00:06.5]} 64.
Kb7 {[%clk 0:00:05]} 64... f3 {[%clk 0:00:06.3]} 65. Qc2+ {[%clk 0:00:05.4]}
65... Kg8 {[%clk 0:00:06.6]} 66. Qb3+ {[%clk 0:00:05.7]} 66... Qf7+ {[%clk
0:00:07]} 0-1

[Event "Early-Titled-Tuesday-Blitz-February-20-2024"]
[Site "Chess.com"]
[Date "2024.02.20"]
[Round "5"]
[White "Alenzer"]
[Black "Carlitus2004"]
[Result "0-1"]
[WhiteElo "2140"]
[BlackElo "2372"]
[TimeControl "180+1"]
[EndTime "8:57:37 PST"]
[Termination "Carlitus2004 won by resignation"]

1. e4 {[%clk 0:03:00.9]} 1... Nc6 {[%clk 0:02:58.8]} 2. d4 {[%clk 0:02:58.7]}
2... d5 {[%clk 0:02:59]} 3. Nc3 {[%clk 0:02:49.3]} 3... dxe4 {[%clk 0:02:48.3]}
4. d5 {[%clk 0:02:49.3]} 4... Ne5 {[%clk 0:02:43.9]} 5. Nxe4 {[%clk 0:02:38]}
5... Nf6 {[%clk 0:02:44.4]} 6. Nxf6+ {[%clk 0:02:32.3]} 6... exf6 {[%clk
0:02:45.3]} 7. Be3 {[%clk 0:02:25.5]} 7... Bd6 {[%clk 0:02:24.2]} 8. Bb5+ {[%clk
0:02:19.2]} 8... Bd7 {[%clk 0:02:19.4]} 9. Bxd7+ {[%clk 0:02:18]} 9... Qxd7
{[%clk 0:02:19.6]} 10. Nf3 {[%clk 0:02:12.3]} 10... O-O {[%clk 0:02:19.8]} 11.
O-O {[%clk 0:02:08.6]} 11... Rfe8 {[%clk 0:02:16.5]} 12. b3 {[%clk 0:02:00.7]}
12... b5 {[%clk 0:02:14.4]} 13. a4 {[%clk 0:01:57.9]} 13... b4 {[%clk
0:02:13.2]} 14. Nd4 {[%clk 0:01:55.7]} 14... Ng4 {[%clk 0:02:11.3]} 15. Nf3
{[%clk 0:01:09.5]} 15... Nxe3 {[%clk 0:02:02.6]} 16. fxe3 {[%clk 0:01:09.5]}
16... Rxe3 {[%clk 0:02:03.3]} 17. Qd4 {[%clk 0:01:01.6]} 17... Rc3 {[%clk
0:01:52.8]} 18. Qd2 {[%clk 0:00:50]} 18... Re8 {[%clk 0:01:39.4]} 19. Rae1
{[%clk 0:00:47.6]} 19... Bc5+ {[%clk 0:01:39.4]} 20. Kh1 {[%clk 0:00:47.3]}
20... Rce3 {[%clk 0:01:38]} 21. Rxe3 {[%clk 0:00:43]} 21... Rxe3 {[%clk
0:01:38.9]} 22. Nd4 {[%clk 0:00:39.6]} 22... Re8 {[%clk 0:01:26.3]} 23. Nc6
{[%clk 0:00:20.6]} 23... h6 {[%clk 0:01:26.1]} 24. Nxb4 {[%clk 0:00:18.7]} 24...
Bxb4 {[%clk 0:01:25.4]} 25. Qxb4 {[%clk 0:00:18.6]} 25... Qxd5 {[%clk
0:01:26.1]} 26. h3 {[%clk 0:00:16]} 26... Re2 {[%clk 0:01:23.6]} 27. Qg4 {[%clk
0:00:14.4]} 27... Rxc2 {[%clk 0:01:14]} 28. Rd1 {[%clk 0:00:14.4]} 28... Qe6
{[%clk 0:01:08]} 29. Rd8+ {[%clk 0:00:10.3]} 29... Kh7 {[%clk 0:01:08.6]} 30.
Qxe6 {[%clk 0:00:09.8]} 30... fxe6 {[%clk 0:01:09.5]} 31. Rd7 {[%clk 0:00:10.2]}
31... Kg6 {[%clk 0:01:02.8]} 32. Kg1 {[%clk 0:00:09.5]} 32... f5 {[%clk
0:00:59.4]} 33. b4 {[%clk 0:00:09.9]} 33... Kf6 {[%clk 0:00:58.9]} 34. b5 {[%clk
0:00:10.1]} 34... Rc4 {[%clk 0:00:55.4]} 35. a5 {[%clk 0:00:09.7]} 35... Rc5
{[%clk 0:00:55]} 36. a6 {[%clk 0:00:08.9]} 36... g5 {[%clk 0:00:48.6]} 37. Kf2
{[%clk 0:00:09.1]} 37... h5 {[%clk 0:00:47.8]} 38. Rd8 {[%clk 0:00:09]} 38...
Rxb5 {[%clk 0:00:46.8]} 39. Ra8 {[%clk 0:00:08.4]} 39... Ra5 {[%clk 0:00:43.4]}
40. Rxa7 {[%clk 0:00:08.6]} 40... c5 {[%clk 0:00:44.1]} 41. Ra8 {[%clk 0:00:08]}
41... c4 {[%clk 0:00:44.3]} 42. a7 {[%clk 0:00:08.3]} 42... Kg7 {[%clk
0:00:44.3]} 43. Ke3 {[%clk 0:00:07.1]} 43... e5 {[%clk 0:00:36.3]} 44. Kd2
{[%clk 0:00:06.3]} 44... Ra3 {[%clk 0:00:33.3]} 45. Kc2 {[%clk 0:00:05.8]} 45...
c3 {[%clk 0:00:25]} 46. Re8 {[%clk 0:00:05.5]} 46... Rxa7 {[%clk 0:00:24.9]} 47.
Rxe5 {[%clk 0:00:05.8]} 47... Ra2+ {[%clk 0:00:24.4]} 48. Kxc3 {[%clk
0:00:06.4]} 48... Kf6 {[%clk 0:00:20.7]} 49. Rb5 {[%clk 0:00:06.2]} 49... Rxg2
{[%clk 0:00:20.9]} 50. Rb6+ {[%clk 0:00:05.1]} 50... Ke5 {[%clk 0:00:21.3]} 51.
Rb5+ {[%clk 0:00:05.7]} 51... Kf4 {[%clk 0:00:22]} 52. Rb4+ {[%clk 0:00:05.5]}
52... Kg3 {[%clk 0:00:22.1]} 53. Rb5 {[%clk 0:00:06.1]} 53... Kxh3 {[%clk
0:00:17.1]} 54. Rxf5 {[%clk 0:00:05.8]} 54... g4 {[%clk 0:00:17.6]} 55. Rxh5+
{[%clk 0:00:04.9]} 55... Kg3 {[%clk 0:00:17.4]} 56. Rh8 {[%clk 0:00:05]} 56...
Re2 {[%clk 0:00:16.8]} 57. Kd3 {[%clk 0:00:04.6]} 57... Re7 {[%clk 0:00:17.3]}
58. Kd2 {[%clk 0:00:04.5]} 58... Kf2 {[%clk 0:00:17.3]} 59. Rf8+ {[%clk
0:00:04.6]} 59... Kg2 {[%clk 0:00:17.5]} 60. Rg8 {[%clk 0:00:05.2]} 60... g3
{[%clk 0:00:18.2]} 61. Rg6 {[%clk 0:00:05.1]} 61... Kf2 {[%clk 0:00:18.4]} 62.
Rf6+ {[%clk 0:00:05.1]} 62... Kg1 {[%clk 0:00:18.4]} 63. Rg6 {[%clk 0:00:05.4]}
63... g2 {[%clk 0:00:19]} 64. Kd1 {[%clk 0:00:06]} 64... Rh7 {[%clk 0:00:14.4]}
65. Rg8 {[%clk 0:00:05.5]} 65... Kh2 {[%clk 0:00:14.5]} 66. Rxg2+ {[%clk
0:00:03.2]} 66... Kxg2 {[%clk 0:00:14.6]} 67. Ke2 {[%clk 0:00:04.1]} 67... Re7+
{[%clk 0:00:14.5]} 68. Kd3 {[%clk 0:00:04.3]} 68... Kf3 {[%clk 0:00:15.3]} 69.
Kd4 {[%clk 0:00:04.8]} 69... Rd7+ {[%clk 0:00:15.1]} 70. Ke5 {[%clk 0:00:05.2]}
70... Ke3 {[%clk 0:00:15.3]} 71. Ke6 {[%clk 0:00:05.2]} 71... Rd4 {[%clk
0:00:16]} 72. Ke5 {[%clk 0:00:05.5]} 72... Ra4 {[%clk 0:00:15.8]} 73. Kd5 {[%clk
0:00:05.8]} 73... Ra5+ {[%clk 0:00:15.7]} 74. Kc4 {[%clk 0:00:06.2]} 74... Re5
{[%clk 0:00:16.4]} 75. Kc3 {[%clk 0:00:05.8]} 75... Rc5+ {[%clk 0:00:16.5]} 76.
Kb4 {[%clk 0:00:06.3]} 76... Kd4 {[%clk 0:00:17.1]} 77. Kb3 {[%clk 0:00:06.7]}
77... Rb5+ {[%clk 0:00:17.7]} 78. Ka4 {[%clk 0:00:06.9]} 78... Kc4 {[%clk
0:00:17.3]} 79. Ka3 {[%clk 0:00:07]} 79... Rb8 {[%clk 0:00:17.3]} 0-1

[Event "Early-Titled-Tuesday-Blitz-February-20-2024"]
[Site "Chess.com"]
[Date "2024.02.20"]
[Round "5"]
[White "Sam_ChessMood"]
[Black "Jospem"]
[Result "0-1"]
[WhiteElo "2938"]
[BlackElo "3089"]
[TimeControl "180+1"]
[EndTime "8:57:41 PST"]
[Termination "Jospem won by resignation"]

1. d4 {[%clk 0:02:56.6]} 1... Nf6 {[%clk 0:03:00]} 2. c4 {[%clk 0:02:56.8]} 2...
e6 {[%clk 0:03:00.2]} 3. Nf3 {[%clk 0:02:56.6]} 3... Bb4+ {[%clk 0:03:00.5]} 4.
Nbd2 {[%clk 0:02:55.9]} 4... O-O {[%clk 0:02:58.2]} 5. g3 {[%clk 0:02:53.9]}
5... b6 {[%clk 0:02:56.7]} 6. Bg2 {[%clk 0:02:53.9]} 6... Bb7 {[%clk 0:02:57.3]}
7. O-O {[%clk 0:02:54]} 7... a5 {[%clk 0:02:57.6]} 8. Qc2 {[%clk 0:02:51.2]}
8... Bxd2 {[%clk 0:02:57.1]} 9. Bxd2 {[%clk 0:02:45.9]} 9... d6 {[%clk
0:02:56.3]} 10. b3 {[%clk 0:02:39]} 10... Nbd7 {[%clk 0:02:53.9]} 11. Bc3 {[%clk
0:02:39.2]} 11... Be4 {[%clk 0:02:49.7]} 12. Qb2 {[%clk 0:02:37.8]} 12... Qb8
{[%clk 0:02:49.8]} 13. Rfe1 {[%clk 0:02:36.7]} 13... b5 {[%clk 0:02:48.2]} 14.
cxb5 {[%clk 0:02:02]} 14... Qxb5 {[%clk 0:02:44.8]} 15. Bf1 {[%clk 0:02:02.3]}
15... Qh5 {[%clk 0:02:16.9]} 16. Nd2 {[%clk 0:01:52.9]} 16... Bc6 {[%clk
0:02:14.5]} 17. e4 {[%clk 0:01:45.2]} 17... Rfb8 {[%clk 0:02:11]} 18. Qc2 {[%clk
0:01:43.2]} 18... Bb5 {[%clk 0:02:06]} 19. Bg2 {[%clk 0:01:43.2]} 19... Qg6
{[%clk 0:02:04.1]} 20. Rac1 {[%clk 0:01:39.3]} 20... a4 {[%clk 0:01:41.1]} 21.
b4 {[%clk 0:01:35.9]} 21... d5 {[%clk 0:01:30]} 22. a3 {[%clk 0:01:20.8]} 22...
c6 {[%clk 0:01:25.9]} 23. e5 {[%clk 0:00:49.1]} 23... Qxc2 {[%clk 0:01:11.3]}
24. Rxc2 {[%clk 0:00:50]} 24... Ne8 {[%clk 0:01:12]} 25. Nf1 {[%clk 0:00:48]}
25... Nb6 {[%clk 0:01:10.2]} 26. Ne3 {[%clk 0:00:48.2]} 26... Nc7 {[%clk
0:01:10.3]} 27. Rec1 {[%clk 0:00:46.9]} 27... Bd3 {[%clk 0:01:05.4]} 28. Rd2
{[%clk 0:00:46.7]} 28... Bc4 {[%clk 0:01:03.1]} 29. Bb2 {[%clk 0:00:44.9]} 29...
Bb5 {[%clk 0:00:57.8]} 30. Rdc2 {[%clk 0:00:44.2]} 30... Kf8 {[%clk 0:00:51.1]}
31. h4 {[%clk 0:00:43.9]} 31... Ke8 {[%clk 0:00:50.5]} 32. f4 {[%clk 0:00:43.9]}
32... Kd7 {[%clk 0:00:49.9]} 33. h5 {[%clk 0:00:42.6]} 33... h6 {[%clk
0:00:49.1]} 34. Kf2 {[%clk 0:00:42.8]} 34... Nc4 {[%clk 0:00:46.8]} 35. Nxc4
{[%clk 0:00:33.7]} 35... Bxc4 {[%clk 0:00:47.7]} 36. Bf1 {[%clk 0:00:27.7]}
36... Bxf1 {[%clk 0:00:47.7]} 37. Kxf1 {[%clk 0:00:28]} 37... Ra6 {[%clk
0:00:48.2]} 38. Ke2 {[%clk 0:00:27.4]} 38... Nb5 {[%clk 0:00:48.8]} 39. g4
{[%clk 0:00:26.8]} 39... f6 {[%clk 0:00:41.9]} 40. Ke3 {[%clk 0:00:21.5]} 40...
Rf8 {[%clk 0:00:37.2]} 41. Rc5 {[%clk 0:00:19.9]} 41... Rf7 {[%clk 0:00:33]} 42.
R1c2 {[%clk 0:00:18.8]} 42... f5 {[%clk 0:00:33]} 43. Rg2 {[%clk 0:00:17.1]}
43... fxg4 {[%clk 0:00:33.5]} 44. Rxg4 {[%clk 0:00:17.4]} 44... Ra8 {[%clk
0:00:33.9]} 45. Rc1 {[%clk 0:00:15.7]} 45... Nc7 {[%clk 0:00:25.2]} 46. Rcg1
{[%clk 0:00:14.9]} 46... Ne8 {[%clk 0:00:25.9]} 47. Bc3 {[%clk 0:00:09.9]} 47...
Ke7 {[%clk 0:00:25.9]} 48. Be1 {[%clk 0:00:09.5]} 48... Kf8 {[%clk 0:00:25.8]}
49. Bc3 {[%clk 0:00:09.2]} 49... Rf5 {[%clk 0:00:25.6]} 50. Rh4 {[%clk
0:00:08.7]} 50... Kf7 {[%clk 0:00:24.7]} 51. Kf3 {[%clk 0:00:08.5]} 51... Nc7
{[%clk 0:00:25.1]} 52. Kg4 {[%clk 0:00:08]} 52... Rg8 {[%clk 0:00:23.3]} 53. Kh3
{[%clk 0:00:06.9]} 53... Nb5 {[%clk 0:00:23.8]} 54. Bb2 {[%clk 0:00:06.9]} 54...
Nc7 {[%clk 0:00:24.6]} 55. Rg2 {[%clk 0:00:05.5]} 55... Na8 {[%clk 0:00:24.3]}
56. Rg1 {[%clk 0:00:04.6]} 56... Nb6 {[%clk 0:00:24.6]} 57. Bc1 {[%clk
0:00:04.4]} 57... Nc4 {[%clk 0:00:25]} 58. Rg2 {[%clk 0:00:04.3]} 58... Kf8
{[%clk 0:00:21.4]} 59. Rg6 {[%clk 0:00:04.2]} 59... Kf7 {[%clk 0:00:21.5]} 60.
Kg4 {[%clk 0:00:04.6]} 60... Re8 {[%clk 0:00:14.8]} 61. Rh1 {[%clk 0:00:03.2]}
61... Kg8 {[%clk 0:00:14.8]} 62. Rg1 {[%clk 0:00:03.5]} 62... Kh7 {[%clk
0:00:14.4]} 63. Kh4 {[%clk 0:00:03.9]} 63... Rf7 {[%clk 0:00:14.7]} 64. R1g4
{[%clk 0:00:04]} 64... Nb6 {[%clk 0:00:13.1]} 65. Rg1 {[%clk 0:00:03.7]} 65...
Nc8 {[%clk 0:00:13.7]} 66. f5 {[%clk 0:00:03.8]} 66... exf5 {[%clk 0:00:09]} 67.
Rxc6 {[%clk 0:00:03.9]} 67... f4 {[%clk 0:00:09.5]} 68. e6 {[%clk 0:00:02.3]}
68... Rf6 {[%clk 0:00:10.1]} 69. Rc7 {[%clk 0:00:02.7]} 69... Ne7 {[%clk
0:00:10.7]} 70. Re1 {[%clk 0:00:02.3]} 70... Nf5+ {[%clk 0:00:10.3]} 71. Kg4
{[%clk 0:00:02.7]} 71... f3 {[%clk 0:00:09]} 72. e7 {[%clk 0:00:02.2]} 72... f2
{[%clk 0:00:09.4]} 73. Rf1 {[%clk 0:00:02.7]} 73... Nxe7 {[%clk 0:00:09.8]} 74.
Be3 {[%clk 0:00:02]} 74... Nf5 {[%clk 0:00:10]} 75. Bxf2 {[%clk 0:00:02.1]}
75... Ne3+ {[%clk 0:00:10.6]} 76. Bxe3 {[%clk 0:00:02.6]} 76... Rxf1 {[%clk
0:00:11.5]} 0-1